bitfinex-derivatives/quotes_BTCF0:USTF0_20260127
["timestamp","ask_amount","ask_price","bid_price","bid_amount"]
[1769480264023,0.11263354,88789.0,88775.0,0.10836298]
[1769480264220,0.11938862,88793.0,88775.0,0.10836298]
[1769480264716,0.011275,88789.0,88775.0,0.10836298]
[1769480271927,0.011275,88792.0,88775.0,0.10836298]
[1769480272130,0.011275,88789.0,88775.0,0.10836298]
[1769480281333,0.011275,88789.0,88777.0,0.11891992]
[1769480284631,0.00788355,88793.0,88777.0,0.11891992]
[1769480284832,0.16227159,88820.0,88780.0,0.11891992]
[1769480284833,0.10152,88802.0,88780.0,0.11891992]
[1769480285133,0.21415417,88802.0,88780.0,0.11891992]
[1769480285438,0.011274,88799.0,88780.0,0.11891992]
[1769480285841,0.34446005,88806.0,88787.0,0.11891992]
[1769480285842,0.01777389,88806.0,88787.0,0.11891992]
[1769480286129,0.01777389,88806.0,88786.0,0.011275]
[1769480286130,0.011273,88806.0,88789.0,0.11891992]
[1769480286334,0.01777376,88806.0,88789.0,0.11891992]
[1769480286541,0.011273,88804.0,88789.0,0.11891992]
[1769480290031,0.011274,88802.0,88789.0,0.11891992]
[1769480290229,0.11358384,88809.0,88789.0,0.11891992]
[1769480290435,0.11358384,88809.0,88745.0,0.011281]
[1769480290436,0.11358384,88799.0,88780.0,0.10152]
[1769480290627,0.011274,88800.0,88780.0,0.10152]
[1769480290628,0.011276,88786.0,88780.0,0.10152]
[1769480290827,0.11358384,88791.0,88780.0,0.10152]
[1769480290828,0.011275,88790.0,88780.0,0.10152]
[1769480291232,0.011275,88788.0,88780.0,0.10152]
[1769480291543,0.011275,88789.0,88780.0,0.10152]
[1769480292343,0.011275,88789.0,88780.0,0.22043992]
[1769480293345,0.011275,88787.0,88781.0,0.11891992]
[1769480293840,0.011274,88801.0,88777.0,0.22043992]
[1769480293841,0.011276,88783.0,88777.0,0.22043992]
[1769480294840,0.011276,88783.0,88754.0,0.08945163]
[1769480294841,0.11358384,88789.0,88758.0,0.011279]
[1769480295046,0.11358384,88778.0,88753.0,0.00563364]
[1769480295239,0.011278,88769.0,88754.0,0.10152]
[1769480295436,0.011278,88766.0,88754.0,0.10152]
[1769480296531,0.011278,88764.0,88754.0,0.10152]
[1769480296839,0.11358384,88764.0,88753.0,0.0078871]
[1769480297239,0.011277,88774.0,88753.0,1e-07]
[1769480297240,0.011279,88760.0,88753.0,1e-07]
[1769480297949,0.12486284,88760.0,88753.0,1e-07]
[1769480298345,0.10152,88769.0,88749.0,0.10152]
[1769480298346,0.01128,88753.0,88749.0,0.10152]
[1769480298643,0.11358384,88757.0,88744.0,0.10347189]
[1769480298644,0.01128,88754.0,88744.0,0.10347189]
[1769480300139,0.011279,88755.0,88744.0,0.10347189]
[1769480300449,0.01128,88750.0,88741.0,0.10152]
[1769480302238,0.01128,88752.0,88741.0,0.10152]
[1769480303340,0.01128,88752.0,88739.0,0.10096092]
[1769480304734,0.01128,88750.0,88739.0,0.10096092]
[1769480306352,0.11981138,88749.0,88737.0,0.10152]
[1769480306748,0.11981138,88749.0,88737.0,0.20118628]
[1769480307353,0.01128,88748.0,88738.0,0.10117256]
[1769480308355,0.01128,88752.0,88738.0,0.10117256]
[1769480309954,0.01128,88750.0,88738.0,0.10117256]
[1769480310854,0.01128,88748.0,88738.0,0.10117256]
[1769480312353,0.10152,88757.0,88738.0,0.10117256]
[1769480312750,0.11268494,88756.0,88738.0,0.10117256]
[1769480312950,0.01128,88752.0,88738.0,0.10117256]
[1769480314861,0.011279,88760.0,88745.0,0.10075939]
[1769480315059,0.011279,88760.0,88751.0,0.10075939]
[1769480315255,0.1126824,88757.0,88751.0,0.10075939]
[1769480315456,0.10152,88765.0,88751.0,0.10075939]
[1769480315855,0.1126824,88759.0,88751.0,0.10075939]
[1769480316253,0.10152,88765.0,88751.0,0.10075939]
[1769480316456,0.1126659,88764.0,88751.0,0.10075939]
[1769480317258,0.011279,88757.0,88751.0,0.10075939]
[1769480317459,0.01128,88755.0,88742.0,0.10898567]
[1769480317664,0.01128,88753.0,88742.0,0.10898567]
[1769480318860,0.01128,88751.0,88742.0,0.10898567]
[1769480319260,0.01128,88749.0,88742.0,0.10898567]
[1769480319567,0.011281,88745.0,88737.0,0.10152]
[1769480321069,0.011281,88746.0,88737.0,0.10152]
[1769480321268,0.16238352,88750.0,88737.0,0.10152]
[1769480321470,0.12,88749.0,88737.0,0.10152]
[1769480322168,0.01128,88748.0,88737.0,0.10152]
[1769480322368,0.011281,88746.0,88737.0,0.10152]
[1769480323770,0.131281,88746.0,88737.0,0.10152]
[1769480326066,0.011281,88746.0,88737.0,0.10152]
[1769480326979,0.28238352,88750.0,88737.0,0.10152]
[1769480328483,0.29366352,88750.0,88737.0,0.10152]
[1769480328683,0.13128,88750.0,88737.0,0.10152]
[1769480329772,0.01128,88748.0,88737.0,0.10152]
[1769480334486,0.28238352,88750.0,88737.0,0.10152]
[1769480335387,0.29366352,88750.0,88737.0,0.10152]
[1769480336285,0.01128,88748.0,88737.0,0.10152]
[1769480340191,0.011281,88746.0,88737.0,0.10152]
[1769480341589,0.28238352,88750.0,88713.0,0.00563618]
[1769480341590,0.12,88743.0,88713.0,0.00563618]
[1769480341882,0.12,88736.0,88714.0,0.40248]
[1769480342086,0.011283,88729.0,88714.0,0.40248]
[1769480342486,0.16238352,88730.0,88714.0,0.40248]
[1769480342788,0.12,88729.0,88714.0,0.40248]
[1769480343090,0.12,88729.0,88713.0,0.00563618]
[1769480343091,0.12,88723.0,88713.0,0.00563618]
[1769480343590,0.131284,88722.0,88704.0,0.011286]
[1769480343783,0.29366752,88720.0,88701.0,0.011286]
[1769480344383,0.23271669,88719.0,88701.0,0.011286]
[1769480344588,0.12009228,88718.0,88701.0,0.011286]
[1769480345191,0.22165228,88718.0,88702.0,0.00077699]
[1769480345494,0.119741,88717.0,88702.0,0.00077699]
[1769480346195,0.119741,88717.0,88703.0,0.011286]
[1769480346588,0.119741,88717.0,88700.0,0.445246]
[1769480347292,0.119741,88717.0,88700.0,0.44682051]
[1769480347484,0.11947516,88711.0,88700.0,0.011286]
[1769480347790,0.11947516,88709.0,88700.0,0.011286]
[1769480348383,0.11947516,88709.0,88699.0,0.10156]
[1769480348588,0.11947516,88717.0,88699.0,0.10313451]
[1769480349091,0.11947516,88717.0,88700.0,0.00157451]
[1769480349888,0.11947516,88717.0,88703.0,0.011286]
[1769480351587,0.40628,88743.0,88699.0,0.10156]
[1769480351588,0.11762838,88733.0,88713.0,0.00711486]
[1769480351788,0.11762838,88731.0,88713.0,0.00711486]
[1769480352093,0.11272686,88719.0,88713.0,0.00711486]
[1769480352385,0.11762838,88724.0,88713.0,0.00711486]
[1769480352792,0.11272686,88723.0,88713.0,0.00711486]
[1769480353790,0.11721996,88728.0,88713.0,0.00711486]
[1769480354093,0.11721996,88726.0,88713.0,0.00711486]
[1769480354689,0.22993665,88725.0,88713.0,0.00711486]
[1769480354991,0.11721996,88725.0,88713.0,0.00711486]
[1769480355387,0.11271479,88724.0,88713.0,0.00711486]
[1769480355985,0.21427479,88724.0,88713.0,0.00711486]
[1769480358287,0.11271479,88724.0,88713.0,0.00711486]
[1769480358592,0.10156,88733.0,88722.0,0.01549552]
[1769480358782,0.11721996,88735.0,88722.0,0.01549552]
[1769480358979,0.11721996,88735.0,88723.0,0.011283]
[1769480359182,0.11721996,88735.0,88722.0,0.01549552]
[1769480359486,0.10156,88736.0,88720.0,0.011284]
[1769480359487,0.11771876,88733.0,88720.0,0.011284]
[1769480360092,0.11771876,88733.0,88720.0,0.02514975]
[1769480360292,0.11270589,88732.0,88720.0,0.02514975]
[1769480361900,0.11270589,88732.0,88722.0,0.011284]
[1769480362492,0.10156,88736.0,88724.0,0.011283]
[1769480362790,0.11270653,88735.0,88724.0,0.011283]
[1769480363181,0.11270653,88735.0,88720.0,0.16238352]
[1769480363182,0.11270653,88735.0,88727.0,0.01323745]
[1769480364585,0.11270653,88735.0,88720.0,0.16238352]
[1769480364586,0.11270653,88735.0,88723.0,0.02452045]
[1769480365683,0.23059767,88735.0,88723.0,0.02452045]
[1769480365887,0.23059767,88735.0,88726.0,0.011283]
[1769480369583,0.23059767,88735.0,88728.0,0.011283]
[1769480370186,0.22437532,88761.0,88738.0,0.011281]
[1769480370378,0.40632,88777.0,88738.0,0.011281]
[1769480370379,0.10156,88749.0,88738.0,0.011281]
[1769480370585,0.11269954,88748.0,88738.0,0.011281]
[1769480370793,0.10156,88749.0,88738.0,0.011281]
[1769480371191,0.11268494,88748.0,88740.0,0.011281]
[1769480371391,0.10156,88749.0,88742.0,0.011281]
[1769480372787,0.11776535,88756.0,88744.0,0.11118449]
[1769480372991,0.55488,88761.0,88744.0,0.11118449]
[1769480372992,0.11776535,88760.0,88744.0,0.11118449]
[1769480373188,0.11776535,88760.0,88747.0,0.01128]
[1769480373499,0.11268176,88755.0,88747.0,0.01128]
[1769480373688,0.11776535,88760.0,88747.0,0.01128]
[1769480374094,0.11776535,88758.0,88747.0,0.01128]
[1769480374696,0.11267478,88757.0,88747.0,0.01128]
[1769480374884,0.23044013,88757.0,88747.0,0.01128]
[1769480375284,0.11776535,88757.0,88747.0,0.01128]
[1769480375697,0.11267288,88756.0,88747.0,0.01128]
[1769480376593,0.11267288,88756.0,88750.0,0.01128]
[1769480376898,0.11776535,88760.0,88750.0,0.01128]
[1769480377193,0.11267224,88760.0,88750.0,0.01128]
[1769480377498,0.55488,88761.0,88750.0,0.01128]
[1769480377698,0.11267224,88760.0,88750.0,0.01128]
[1769480377893,0.23043759,88760.0,88750.0,0.01128]
[1769480378293,0.11776535,88759.0,88750.0,0.01128]
[1769480378997,0.11266907,88758.0,88750.0,0.01128]
[1769480380301,0.11266907,88758.0,88752.0,0.01128]
[1769480381202,0.23043442,88758.0,88749.0,0.01128]
[1769480381402,0.11776535,88757.0,88749.0,0.01128]
[1769480381993,0.23043505,88756.0,88749.0,0.01128]
[1769480382198,0.23043505,88756.0,88751.0,0.01128]
[1769480382399,0.11776535,88756.0,88751.0,0.01128]
[1769480383302,3.5e-07,88756.0,88751.0,0.01128]
[1769480383504,3.5e-07,88756.0,88742.0,0.11118449]
[1769480384003,0.55488,88761.0,88744.0,0.11118449]
[1769480384208,0.55488,88761.0,88746.0,0.11118449]
[1769480384397,3.2e-07,88760.0,88757.0,0.011279]
[1769480384597,0.2972,88774.0,88759.0,0.011279]
[1769480385000,0.11267732,88770.0,88759.0,0.011279]
[1769480385203,0.2972,88774.0,88759.0,0.011279]
[1769480385401,0.11776535,88773.0,88759.0,0.011279]
[1769480385607,0.23042046,88773.0,88755.0,0.011279]
[1769480385805,0.11776535,88772.0,88755.0,0.011279]
[1769480386105,0.11776535,88771.0,88755.0,0.011279]
[1769480386702,0.11776535,88769.0,88755.0,0.011279]
[1769480386905,0.11776535,88769.0,88747.0,0.10156]
[1769480387299,0.11776535,88767.0,88747.0,0.10156]
[1769480387500,0.11776535,88767.0,88754.0,0.01128]
[1769480388202,0.11776535,88767.0,88751.0,0.01128]
[1769480389010,0.2972,88774.0,88742.0,0.011281]
[1769480389011,0.11929596,88761.0,88742.0,0.011281]
[1769480389303,0.11929596,88761.0,88743.0,0.10156]
[1769480389503,0.11929596,88759.0,88743.0,0.10156]
[1769480389900,0.11929596,88759.0,88744.0,0.011281]
[1769480390410,0.11929596,88759.0,88735.0,0.4292]
[1769480390411,0.11267478,88758.0,88738.0,0.10156]
[1769480390613,0.11929596,88757.0,88738.0,0.10156]
[1769480391105,0.13057496,88757.0,88738.0,0.112842]
[1769480391310,0.13057496,88757.0,88735.0,0.53076]
[1769480392209,0.13057496,88757.0,88728.0,0.11164675]
[1769480392210,0.11929596,88750.0,88733.0,0.011282]
[1769480392399,0.11929596,88750.0,88730.0,0.10156]
[1769480393016,0.11929596,88748.0,88730.0,0.10156]
[1769480393408,0.11929596,88748.0,88736.0,0.011282]
[1769480393716,0.11929596,88746.0,88736.0,0.011282]
[1769480395617,0.11929596,88746.0,88732.0,0.011282]
[1769480397016,0.11929596,88746.0,88730.0,0.10156]
[1769480398517,0.11929596,88746.0,88733.0,0.011282]
[1769480398712,0.11929596,88746.0,88730.0,0.10156]
[1769480399019,0.10156,88755.0,88738.0,0.11164675]
[1769480399211,0.11929596,88754.0,88739.0,0.12292775]
[1769480399411,0.11929596,88752.0,88736.0,0.011282]
[1769480400211,0.11929596,88752.0,88734.0,0.11164675]
[1769480400412,0.11929596,88752.0,88733.0,0.011282]
[1769480400713,0.11929596,88748.0,88730.0,0.011283]
[1769480400919,0.11929596,88748.0,88730.0,0.10156]
[1769480401510,0.11929596,88746.0,88730.0,0.10156]
[1769480402610,0.11929596,88743.0,88730.0,0.10156]
[1769480403012,0.11929596,88743.0,88731.0,0.12292875]
[1769480403219,0.11929596,88752.0,88733.0,0.12292875]
[1769480403527,0.11929596,88750.0,88733.0,0.12292875]
[1769480404115,0.11929596,88748.0,88730.0,0.10156]
[1769480404716,0.11929596,88746.0,88730.0,0.10156]
[1769480405513,0.11929596,88746.0,88731.0,0.011282]
[1769480405920,0.11929596,88746.0,88733.0,0.011282]
[1769480407222,0.11929596,88746.0,88730.0,0.112843]
[1769480407617,0.11929596,88744.0,88727.0,0.011283]
[1769480407816,0.11929596,88742.0,88727.0,0.10156]
[1769480409122,0.11929596,88742.0,88731.0,0.011282]
[1769480410421,0.11929596,88742.0,88728.0,0.011283]
[1769480411024,0.11929596,88742.0,88727.0,0.10156]
[1769480411425,0.11929596,88742.0,88728.0,0.011283]
[1769480412122,0.10156,88751.0,88727.0,0.10156]
[1769480412123,0.11929596,88738.0,88727.0,0.10156]
[1769480412625,0.11929596,88738.0,88723.0,0.10156]
[1769480413223,0.11929596,88738.0,88724.0,0.12292975]
[1769480413925,0.11929596,88738.0,88724.0,0.011283]
[1769480414327,0.11929596,88738.0,88723.0,0.10156]
[1769480418125,0.11929596,88735.0,88718.0,0.011284]
[1769480418428,0.11929596,88729.0,88715.0,0.112845]
[1769480420420,0.11929596,88729.0,88715.0,0.10156]
[1769480422027,0.1101213,88727.0,88715.0,0.10156]
[1769480422421,0.10156,88734.0,88710.0,0.11876306]
[1769480422422,0.1101213,88725.0,88710.0,0.10156]
[1769480423122,0.1101213,88725.0,88711.0,0.011285]
[1769480424729,0.1101213,88725.0,88713.0,0.011285]
[1769480424928,0.1101213,88725.0,88715.0,0.011284]
[1769480425531,0.1101213,88725.0,88712.0,0.011285]
[1769480426032,0.1101213,88725.0,88715.0,0.011284]
[1769480426233,0.1101213,88733.0,88712.0,0.11595432]
[1769480426526,0.22283736,88733.0,88712.0,0.11595432]
[1769480426725,0.10156,88742.0,88729.0,0.12723732]
[1769480428833,0.10156,88742.0,88729.0,0.11595432]
[1769480429434,0.2116813,88742.0,88729.0,0.11595432]
[1769480431536,0.1101213,88741.0,88729.0,0.11595432]
[1769480435336,0.1101213,88741.0,88729.0,0.12723732]
[1769480436337,0.1101213,88741.0,88729.0,0.11595432]
[1769480441748,0.1214023,88741.0,88729.0,0.11595432]
[1769480442339,0.1101213,88741.0,88729.0,0.11595432]
[1769480444349,0.1214023,88741.0,88729.0,0.11595432]
[1769480445450,0.1101213,88741.0,88729.0,0.11595432]
[1769480447651,0.1111213,88741.0,88729.0,0.11595432]
[1769480448254,0.1101213,88741.0,88729.0,0.11595432]
[1769480448446,0.1111213,88741.0,88729.0,0.11595432]
[1769480453858,0.16240849,88740.0,88729.0,0.11595432]
[1769480454054,0.011282,88738.0,88724.0,0.11120215]
[1769480454460,0.12163964,88738.0,88724.0,0.11120215]
[1769480458461,0.011282,88738.0,88724.0,0.11120215]
[1769480458761,0.16240849,88740.0,88724.0,0.12248515]
[1769480458962,0.11035764,88744.0,88724.0,0.12248515]
[1769480459261,0.011282,88739.0,88724.0,0.11120215]
[1769480459561,0.12163964,88739.0,88724.0,0.11120215]
[1769480459856,0.11035764,88739.0,88723.0,0.10156]
[1769480460060,0.10156,88746.0,88675.0,0.01129]
[1769480460061,0.11035764,88725.0,88714.0,0.10156]
[1769480460456,0.11035764,88734.0,88717.0,0.011284]
[1769480460859,0.22305782,88731.0,88717.0,0.011284]
[1769480461156,0.11035764,88730.0,88715.0,0.11120215]
[1769480461351,0.22306671,88730.0,88716.0,0.011284]
[1769480461550,0.11035764,88729.0,88716.0,0.011284]
[1769480461949,0.11035764,88729.0,88715.0,0.11120215]
[1769480463259,0.11035764,88726.0,88710.0,0.11120215]
[1769480463457,0.11035764,88726.0,88710.0,0.21276215]
[1769480464259,0.11035764,88726.0,88710.0,0.10156]
[1769480464855,0.11035764,88726.0,88710.0,0.22404715]
[1769480465366,0.16240849,88720.0,88710.0,0.21276215]
[1769480465566,0.12164064,88726.0,88710.0,0.21276215]
[1769480465758,0.12164064,88726.0,88710.0,0.10156]
[1769480465957,0.12164064,88726.0,88706.0,0.11120215]
[1769480466158,0.11035764,88719.0,88706.0,0.21276215]
[1769480466458,0.11035764,88719.0,88706.0,0.112846]
[1769480467354,0.11035764,88719.0,88705.0,0.11120215]
[1769480467553,0.11035764,88719.0,88705.0,0.21276215]
[1769480467962,0.11035764,88719.0,88708.0,0.011285]
[1769480468763,0.11035764,88719.0,88706.0,0.11120215]
[1769480468968,0.11035764,88719.0,88705.0,0.10156]
[1769480469165,0.11035764,88719.0,88701.0,0.12248815]
[1769480469359,0.11035764,88719.0,88702.0,0.10156]
[1769480471369,0.11035764,88719.0,88704.0,0.011286]
[1769480471667,0.11035764,88719.0,88706.0,0.011286]
[1769480473068,0.11035764,88719.0,88704.0,0.11120215]
[1769480473459,0.11035764,88719.0,88702.0,0.10156]
[1769480474059,0.11035764,88719.0,88703.0,0.12248815]
[1769480474970,0.11035764,88719.0,88703.0,0.11120215]
[1769480475976,0.11035764,88723.0,88706.0,0.11120215]
[1769480476164,0.11035764,88723.0,88709.0,0.11120215]
[1769480476466,0.11035764,88720.0,88703.0,0.11120215]
[1769480477470,0.11035764,88720.0,88702.0,0.10156]
[1769480477471,0.12164164,88718.0,88702.0,0.10156]
[1769480477669,0.10156,88724.0,88698.0,0.00650684]
[1769480477670,0.11035764,88711.0,88698.0,0.00650684]
[1769480477867,0.12164264,88711.0,88698.0,0.00650684]
[1769480478175,0.11035764,88711.0,88698.0,0.00650684]
[1769480485372,0.12164264,88711.0,88697.0,0.10156]
[1769480486074,0.16240849,88712.0,88697.0,0.10156]
[1769480486075,0.11130256,88708.0,88697.0,0.10156]
[1769480486575,0.11130256,88708.0,88692.0,0.011287]
[1769480487369,0.0032345,88706.0,88692.0,0.011287]
[1769480489369,0.0032345,88706.0,88697.0,0.011287]
[1769480489590,0.00246819,88711.0,88697.0,0.011287]
[1769480489972,0.00246819,88710.0,88697.0,0.011287]
[1769480490569,0.001,88706.0,88697.0,0.011287]
[1769480490781,0.001,88706.0,88694.0,0.13046426]
[1769480491282,0.00246819,88710.0,88694.0,0.13046426]
[1769480493982,0.00206151,88709.0,88694.0,0.11917726]
[1769480494384,0.00206151,88707.0,88694.0,0.11917726]
[1769480497285,0.00206151,88707.0,88695.0,0.13086779]
[1769480497586,0.011285,88712.0,88695.0,0.13086779]
[1769480497587,0.00125761,88711.0,88695.0,0.13086779]
[1769480497972,0.11399654,88711.0,88695.0,0.13086779]
[1769480498881,0.11273893,88711.0,88695.0,0.13086779]
[1769480499085,0.00125761,88710.0,88695.0,0.13086779]
[1769480499296,0.10156,88713.0,88698.0,0.13086779]
[1769480499479,0.10156,88713.0,88698.0,0.11958079]
[1769480499677,0.11273575,88712.0,88698.0,0.11958079]
[1769480502279,0.11273575,88712.0,88699.0,0.13080464]
[1769480502784,0.11418281,88712.0,88699.0,0.11951764]
[1769480503094,0.00144706,88711.0,88699.0,0.11951764]
[1769480503694,0.11273258,88710.0,88699.0,0.11951764]
[1769480508099,0.11273258,88710.0,88700.0,0.011286]
[1769480508295,0.11273258,88710.0,88699.0,0.11951764]
[1769480508889,0.11273258,88710.0,88699.0,0.13080364]
[1769480509801,0.11273258,88710.0,88701.0,0.13027378]
[1769480509999,0.28148958,88742.0,88685.0,0.35944]
[1769480510000,0.011283,88728.0,88711.0,0.11898778]
[1769480510206,0.01128,88749.0,88711.0,0.11898778]
[1769480510207,0.112883,88731.0,88711.0,0.11898778]
[1769480510394,0.11273385,88725.0,88715.0,0.11898778]
[1769480510591,0.1016,88731.0,88717.0,0.11898778]
[1769480510791,0.1016,88731.0,88721.0,0.11898778]
[1769480512802,0.112882,88731.0,88721.0,0.11898778]
[1769480513002,0.00028642,88721.0,88708.0,0.1016]
[1769480513899,0.00348612,88719.0,88708.0,0.1016]
[1769480516401,0.00348612,88719.0,88707.0,0.011285]
[1769480517409,0.00448612,88719.0,88707.0,0.011285]
[1769480517996,0.00448612,88719.0,88703.0,0.11883795]
[1769480517997,0.00348612,88719.0,88703.0,0.13012395]
[1769480518200,0.00448612,88719.0,88703.0,0.13012395]
[1769480519605,0.00348612,88719.0,88703.0,0.13012395]
[1769480522507,0.00348612,88719.0,88703.0,0.11883795]
[1769480522805,0.10581181,88711.0,88696.0,0.1016]
[1769480522994,0.10581181,88711.0,88673.0,0.15378416]
[1769480522995,0.10581181,88711.0,88695.0,0.112887]
[1769480523903,0.10648523,88709.0,88695.0,0.1016]
[1769480524704,0.10648523,88709.0,88696.0,0.10800733]
[1769480525306,0.10713678,88713.0,88696.0,0.11929433]
[1769480525507,0.10713678,88713.0,88696.0,0.10800733]
[1769480525700,0.10713678,88712.0,88696.0,0.10800733]
[1769480525897,0.011285,88708.0,88696.0,0.10800733]
[1769480526301,0.11842278,88708.0,88696.0,0.10800733]
[1769480527210,0.11842278,88708.0,88691.0,0.10800733]
[1769480527406,0.011286,88706.0,88691.0,0.10800733]
[1769480528009,0.11792837,88706.0,88691.0,0.10800733]
[1769480528313,0.11792837,88706.0,88690.0,0.1016]
[1769480528610,0.11792837,88704.0,88690.0,0.20960733]
[1769480528805,0.11792837,88704.0,88691.0,0.10800733]
[1769480530210,0.10664237,88704.0,88691.0,0.11929533]
[1769480530603,0.10664237,88704.0,88691.0,0.10800733]
[1769480533114,0.11792837,88704.0,88691.0,0.10800733]
[1769480533710,0.10664237,88704.0,88691.0,0.10800733]
[1769480534118,0.011286,88707.0,88691.0,0.10800733]
[1769480534306,0.11785691,88707.0,88691.0,0.10800733]
[1769480535111,0.10657091,88707.0,88692.0,0.11929433]
[1769480535317,0.11785691,88707.0,88692.0,0.11929433]
[1769480537922,0.11785691,88707.0,88692.0,0.10800733]
[1769480538124,0.011286,88703.0,88692.0,0.10800733]
[1769480540018,0.10546259,88703.0,88688.0,0.11021156]
[1769480540322,0.10546259,88703.0,88674.0,0.16824993]
[1769480540323,0.011288,88692.0,88683.0,0.11021156]
[1769480540524,0.11674959,88695.0,88683.0,0.11021156]
[1769480542225,0.011287,88693.0,88683.0,0.11021156]
[1769480542619,0.011288,88691.0,88682.0,0.1016]
[1769480543827,0.011288,88691.0,88678.0,0.11263655]
[1769480544324,0.10546259,88695.0,88681.0,0.11263655]
[1769480544529,0.10546259,88695.0,88683.0,0.11263655]
[1769480544827,0.11275927,88694.0,88683.0,0.11263655]
[1769480545215,0.011287,88698.0,88683.0,0.11263655]
[1769480545419,0.11275927,88697.0,88683.0,0.11263655]
[1769480545725,0.011287,88696.0,88683.0,0.11263655]
[1769480546524,0.11275419,88695.0,88683.0,0.11263655]
[1769480546923,0.011287,88698.0,88683.0,0.11263655]
[1769480547124,0.11275291,88697.0,88683.0,0.11263655]
[1769480547422,0.20442293,88697.0,88683.0,0.11263655]
[1769480547726,0.09167002,88697.0,88683.0,0.11263655]
[1769480548122,0.11275228,88696.0,88683.0,0.11263655]
[1769480548320,0.12403928,88696.0,88683.0,0.11263655]
[1769480549430,0.11275228,88696.0,88683.0,0.11263655]
[1769480549729,0.011287,88695.0,88683.0,0.11263655]
[1769480550429,0.11275291,88694.0,88683.0,0.11263655]
[1769480552334,0.011287,88700.0,88683.0,0.11263655]
[1769480552630,0.011287,88698.0,88683.0,0.11263655]
[1769480553330,0.11275419,88697.0,88683.0,0.11263655]
[1769480558933,0.011287,88696.0,88683.0,0.11263655]
[1769480559534,0.11275228,88695.0,88683.0,0.11263655]
[1769480561435,0.011287,88694.0,88683.0,0.11263655]
[1769480562030,0.11275355,88693.0,88683.0,0.11263655]
[1769480568135,0.12404055,88693.0,88683.0,0.11263655]
[1769480568335,0.011288,88688.0,88674.0,0.11661103]
[1769480569138,0.16259325,88690.0,88676.0,0.10738297]
[1769480569539,0.16259325,88690.0,88673.0,0.10949422]
[1769480569540,0.16259325,88690.0,88678.0,0.10738297]
[1769480569739,0.06702595,88696.0,88678.0,0.10738297]
[1769480570041,0.011287,88694.0,88678.0,0.10738297]
[1769480570334,0.16259325,88690.0,88678.0,0.11867197]
[1769480571236,0.001,88690.0,88678.0,0.10738297]
[1769480571538,0.011288,88689.0,88678.0,0.10738297]
[1769480571735,0.011288,88687.0,88678.0,0.10738297]
[1769480572727,0.06455103,88689.0,88678.0,0.10738297]
[1769480572933,0.001,88687.0,88678.0,0.10738297]
[1769480574239,0.16259325,88690.0,88678.0,0.10738297]
[1769480574435,0.001,88687.0,88678.0,0.10738297]
[1769480575039,0.11276181,88689.0,88678.0,0.10738297]
[1769480575242,0.16259325,88700.0,88678.0,0.10738297]
[1769480575541,0.11275991,88696.0,88678.0,0.10738297]
[1769480576244,0.11275991,88696.0,88682.0,0.10738297]
[1769480577843,0.001,88689.0,88682.0,0.10738297]
[1769480578443,0.10122413,88695.0,88682.0,0.10738297]
[1769480579146,0.112758,88694.0,88682.0,0.10738297]
[1769480579337,0.112758,88694.0,88682.0,0.11867197]
[1769480579643,0.1016,88697.0,88683.0,0.011289]
[1769480579838,0.1016,88697.0,88683.0,0.11867197]
[1769480580040,0.11275482,88696.0,88683.0,0.10738297]
[1769480582849,0.12404182,88696.0,88683.0,0.10738297]
[1769480583147,0.22526595,88696.0,88683.0,0.10738297]
[1769480584449,0.21397895,88696.0,88683.0,0.10738297]
[1769480584845,0.1016,88695.0,88683.0,0.10738297]
[1769480585643,0.11275291,88694.0,88684.0,0.011288]
[1769480585841,0.11275291,88694.0,88683.0,0.10738297]
[1769480587949,0.11375291,88694.0,88683.0,0.10738297]
[1769480593851,0.11375291,88694.0,88683.0,0.11867197]
[1769480594854,0.11375291,88694.0,88683.0,0.10738297]
[1769480595955,0.11275291,88694.0,88683.0,0.10738297]
[1769480596154,0.11375291,88694.0,88683.0,0.10738297]
[1769480599158,0.011287,88693.0,88683.0,0.10738297]
[1769480599655,0.16259325,88693.0,88683.0,0.11867197]
[1769480599857,0.11275482,88692.0,88683.0,0.11867197]
[1769480600657,0.001,88693.0,88683.0,0.11867197]
[1769480600858,0.11275546,88692.0,88683.0,0.11867197]
[1769480602159,0.11375546,88692.0,88683.0,0.11867197]
[1769480602461,0.001,88692.0,88683.0,0.11867197]
[1769480602849,0.11275546,88691.0,88683.0,0.11867197]
[1769480603054,0.16259325,88700.0,88673.0,0.00789422]
[1769480603055,0.09724281,88709.0,88687.0,0.08916849]
[1769480603261,0.5624,88708.0,88692.0,0.08916849]
[1769480603455,0.01567482,88702.0,88696.0,0.08916849]
[1769480603651,0.5624,88708.0,88696.0,0.08916849]
[1769480603847,0.11273957,88701.0,88696.0,0.08916849]
[1769480604052,0.5624,88708.0,88696.0,0.08916849]
[1769480604351,0.11273957,88700.0,88696.0,0.08916849]
[1769480604551,0.5624,88708.0,88696.0,0.08916849]
[1769480604962,0.11274211,88707.0,88696.0,0.08916849]
[1769480621873,0.09724281,88706.0,88692.0,0.08916849]
[1769480622079,0.10852881,88703.0,88684.0,0.08916849]
[1769480622279,0.46948,88702.0,88684.0,0.08916849]
[1769480622476,0.56672281,88702.0,88684.0,0.08916849]
[1769480622685,0.67946047,88702.0,88684.0,0.08916849]
[1769480623177,0.011286,88701.0,88684.0,0.08916849]
[1769480623880,0.1127491,88700.0,88684.0,0.08916849]
[1769480624380,0.1127491,88700.0,88686.0,0.08916849]
[1769480626369,0.1137491,88700.0,88686.0,0.08916849]
[1769480634685,0.1137491,88700.0,88688.0,0.09056855]
[1769480635085,0.1137491,88700.0,88689.0,0.10185655]
[1769480635686,0.1127491,88700.0,88689.0,0.10185655]
[1769480635886,0.1137491,88700.0,88689.0,0.10185655]
[1769480637488,0.1127491,88700.0,88689.0,0.10185655]
[1769480637692,0.1137491,88700.0,88689.0,0.10185655]
[1769480638284,0.1137491,88700.0,88689.0,0.09056855]
[1769480644395,0.1137491,88700.0,88689.0,0.10185655]
[1769480645206,0.1137491,88700.0,88691.0,0.011288]
[1769480645389,0.1137491,88700.0,88692.0,0.011287]
[1769480646798,0.1137491,88700.0,88689.0,0.09056855]
[1769480646799,1e-07,88700.0,88689.0,0.09056855]
[1769480646999,0.46948,88702.0,88689.0,0.09056855]
[1769480647199,0.001,88700.0,88689.0,0.09056855]
[1769480647801,0.46948,88702.0,88689.0,0.09056855]
[1769480648499,0.46948,88702.0,88695.0,0.011287]
[1769480650201,0.46948,88702.0,88692.0,0.09056855]
[1769480650503,0.09187449,88701.0,88690.0,0.011288]
[1769480656405,0.09187449,88701.0,88687.0,0.10185655]